bitfinex-derivatives/quotes_BTCF0:USTF0_20250711
["timestamp","ask_amount","ask_price","bid_price","bid_amount"]
[1752239456131,0.08091648,117870.0,117860.0,1.25825312]
[1752239456434,0.24955358,117870.0,117860.0,0.79632483]
[1752239456933,0.24955358,117870.0,117860.0,1.25825312]
[1752239457432,0.24955358,117870.0,117860.0,1.23541979]
[1752239457827,0.24955358,117870.0,117850.0,0.02283333]
[1752239457828,0.1696515,117860.0,117850.0,0.02283333]
[1752239458127,0.71099627,117860.0,117850.0,0.02283333]
[1752239458331,0.71099627,117860.0,117840.0,0.032115]
[1752239458332,0.1696659,117850.0,117840.0,0.032115]
[1752239460732,0.21982558,117820.0,117810.0,1.34766148]
[1752239461032,0.21982558,117820.0,117810.0,1.14962102]
[1752239461631,0.21982558,117820.0,117810.0,1.31934452]
[1752239461933,0.25102558,117820.0,117810.0,1.14962102]
[1752239462137,0.25102558,117820.0,117810.0,1.31934452]
[1752239462339,0.25102558,117820.0,117810.0,1.33476035]
[1752239462833,0.08131648,117820.0,117810.0,1.33476035]
[1752239463131,0.0635,117820.0,117810.0,1.33476035]
[1752239463338,0.0635,117820.0,117810.0,1.38796035]
[1752239463339,0.0323,117820.0,117810.0,1.38796035]
[1752239463729,0.2325091,117820.0,117810.0,1.33476035]
[1752239464436,0.2325091,117820.0,117810.0,1.31934452]
[1752239464828,0.26830054,117820.0,117810.0,0.002]
[1752239465032,0.26830054,117820.0,117810.0,0.61048]
[1752239465233,0.81016156,117820.0,117810.0,0.61048]
[1752239466033,0.81016156,117820.0,117810.0,0.6112]
[1752239466738,0.26830054,117820.0,117810.0,0.6112]
[1752239466932,0.26830054,117820.0,117810.0,0.6092]
[1752239467128,0.26830054,117820.0,117810.0,0.7789256]
[1752239467328,0.26830054,117820.0,117810.0,1.32078662]
[1752239467734,0.26830054,117820.0,117810.0,1.32278662]
[1752239468131,0.26830054,117820.0,117810.0,0.7809256]
[1752239468337,0.26830054,117820.0,117810.0,1.15106102]
[1752239468540,0.26830054,117820.0,117810.0,1.32078652]
[1752239468927,0.09859144,117820.0,117810.0,1.32078652]
[1752239469133,0.01797496,117820.0,117810.0,1.32078652]
[1752239469334,0.01797496,117820.0,117810.0,1.37388652]
[1752239469936,0.01797496,117820.0,117810.0,1.87388652]
[1752239470837,0.18768416,117820.0,117810.0,1.87388652]
[1752239471438,0.25128416,117820.0,117810.0,1.82078652]
[1752239471637,0.25128416,117820.0,117810.0,1.32078652]
[1752239471836,0.25128416,117820.0,117810.0,0.7789255]
[1752239472039,0.25128416,117820.0,117810.0,1.32078652]
[1752239472740,0.08157496,117820.0,117810.0,1.32078652]
[1752239472937,0.08157496,117820.0,117810.0,1.37388652]
[1752239473136,0.08157496,117820.0,117810.0,1.37398652]
[1752239473638,0.25128416,117820.0,117810.0,0.8321255]
[1752239473837,0.08157496,117820.0,117810.0,0.8321255]
[1752239474036,0.08157496,117820.0,117810.0,1.37398652]
[1752239474340,0.25128416,117820.0,117810.0,1.37398652]
[1752239474939,0.08157496,117820.0,117810.0,1.37398652]
[1752239475940,0.25128416,117820.0,117810.0,1.37398652]
[1752239476443,0.08157496,117820.0,117810.0,1.37398652]
[1752239477438,0.25128416,117820.0,117810.0,0.8321255]
[1752239477639,0.26910064,117820.0,117810.0,1.37398652]
[1752239477838,0.09939144,117820.0,117810.0,1.37398652]
[1752239478041,0.26910064,117820.0,117810.0,1.37398652]
[1752239478345,0.09939144,117820.0,117810.0,1.37398652]
[1752239478845,0.26910064,117820.0,117810.0,1.37398652]
[1752239479047,0.26910064,117820.0,117810.0,1.32088652]
[1752239479544,0.09939144,117820.0,117810.0,1.32088652]
[1752239480241,0.26910064,117820.0,117810.0,1.32088652]
[1752239480439,0.26910064,117820.0,117810.0,1.15116102]
[1752239480635,0.25128416,117820.0,117810.0,0.6093]
[1752239480947,0.26910064,117820.0,117810.0,1.14936102]
[1752239481541,0.26910064,117820.0,117810.0,1.31908462]
[1752239482637,0.0636,117820.0,117810.0,1.31908462]
[1752239482843,0.2121084,117840.0,117830.0,0.1696948]
[1752239483049,0.29132488,117840.0,117830.0,1.31919582]
[1752239483841,0.29132488,117840.0,117830.0,1.14950102]
[1752239484346,0.29332488,117840.0,117830.0,1.14950102]
[1752239484944,0.29332488,117840.0,117830.0,0.60764]
[1752239485546,0.29432488,117840.0,117830.0,0.60764]
[1752239485747,0.1697092,117820.0,117810.0,0.75410842]
[1752239486146,0.25272568,117820.0,117810.0,1.36218842]
[1752239487647,0.25272568,117820.0,117810.0,1.36318842]
[1752239488153,0.25272568,117820.0,117810.0,1.36418842]
[1752239488752,0.25272568,117820.0,117810.0,1.32175922]
[1752239489951,0.08301648,117820.0,117810.0,1.32175922]
[1752239490453,0.08301648,117820.0,117810.0,1.35207708]
[1752239492455,0.0652,117820.0,117810.0,1.35207708]
[1752239492650,0.18746716,117830.0,117820.0,0.1697092]
[1752239492854,0.01777236,117830.0,117820.0,0.71157022]
[1752239493053,0.01777236,117830.0,117820.0,0.76477022]
[1752239493356,0.05037236,117830.0,117820.0,0.76477022]
[1752239493859,0.08147236,117830.0,117820.0,0.71157022]
[1752239494252,0.25116716,117830.0,117820.0,0.71157022]
[1752239496257,0.08147236,117830.0,117820.0,0.71157022]
[1752239496658,0.25116706,117830.0,117820.0,0.71157022]
[1752239497458,0.08147236,117830.0,117820.0,0.71157022]
[1752239497858,0.08147236,117830.0,117820.0,0.74188808]
[1752239498461,0.25116716,117830.0,117820.0,0.74188808]
[1752239498858,0.25116716,117830.0,117820.0,0.20002706]
[1752239499065,0.25116716,117830.0,117820.0,0.74188808]
[1752239499265,0.25116716,117830.0,117820.0,0.71157022]
[1752239499560,0.25116716,117830.0,117820.0,0.74188808]
[1752239500667,0.09928884,117830.0,117820.0,0.74188808]
[1752239500869,0.09928884,117830.0,117820.0,0.66216144]
[1752239501573,0.08151648,117830.0,117820.0,0.66216144]
[1752239501773,0.002,117850.0,117840.0,0.1696804]
[1752239501974,0.21978248,117850.0,117840.0,2.33246916]
[1752239502369,0.21978248,117850.0,117840.0,1.87033478]
[1752239502577,0.21978248,117850.0,117840.0,1.85514317]
[1752239503281,0.21978248,117850.0,117840.0,1.68546277]
[1752239503582,0.21978248,117850.0,117840.0,1.85514307]
[1752239503780,0.21978248,117850.0,117840.0,1.68546277]
[1752239503983,0.21978248,117850.0,117840.0,1.85514307]
[1752239504476,0.05011648,117850.0,117840.0,2.31727745]
[1752239504681,0.05011648,117850.0,117840.0,2.34857745]
[1752239505883,0.0323,117850.0,117840.0,2.34857745]
[1752239506078,0.0323,117850.0,117840.0,1.42430869]
[1752239506285,0.201966,117850.0,117840.0,2.34857745]
[1752239506885,0.201966,117850.0,117840.0,2.34957745]
[1752239507184,0.0323,117850.0,117840.0,2.34957745]
[1752239507378,0.201966,117850.0,117840.0,2.34957745]
[1752239508883,0.232166,117850.0,117840.0,2.34957745]
[1752239509387,0.232166,117850.0,117840.0,2.34967745]
[1752239509686,0.002,117850.0,117840.0,2.35067745]
[1752239509981,0.002,117850.0,117840.0,2.37447745]
[1752239510585,0.002,117850.0,117840.0,2.40479531]
[1752239511189,0.002,117850.0,117840.0,2.90479531]
[1752239513282,0.002,117850.0,117840.0,2.91474223]
[1752239515288,0.002,117850.0,117840.0,2.45260785]
[1752239515489,0.002,117850.0,117840.0,2.91574223]
[1752239516695,0.002,117850.0,117840.0,2.91474223]
[1752239516895,0.002,117850.0,117840.0,2.91674223]
[1752239518192,0.0325,117860.0,117850.0,0.169666]
[1752239518390,0.2012247,117880.0,117870.0,0.1696372]
[1752239518591,0.2012247,117880.0,117870.0,1.21168]
[1752239518800,0.21904118,117880.0,117870.0,1.67381438]
[1752239518996,0.1696372,117870.0,117860.0,0.46213438]
[1752239519191,0.21905368,117870.0,117860.0,1.06793438]
[1752239519492,0.21905368,117870.0,117860.0,1.21164]
[1752239519796,0.1696516,117860.0,117850.0,0.46213438]
[1752239519999,0.21906808,117860.0,117850.0,1.23756038]
[1752239520796,0.21906808,117860.0,117850.0,1.23856038]
[1752239521393,0.21906808,117860.0,117850.0,1.23956038]
[1752239521594,0.25226808,117860.0,117850.0,1.23956038]
[1752239522398,0.25226808,117860.0,117850.0,1.06989438]
[1752239522700,0.25226808,117860.0,117850.0,1.23956038]
[1752239524404,0.25226808,117860.0,117850.0,0.46413438]
[1752239524704,0.25226808,117860.0,117850.0,0.60652]
[1752239525896,1.15210907,117860.0,117850.0,1e-07]
[1752239526106,0.01781648,117850.0,117820.0,0.05314595]
[1752239526399,0.18751128,117830.0,117820.0,0.05314595]
[1752239526597,0.18751128,117830.0,117820.0,0.66166595]
[1752239526799,0.21831128,117830.0,117820.0,0.66166595]
[1752239526998,0.21831128,117830.0,117820.0,1.29350953]
[1752239527194,0.04861648,117830.0,117820.0,1.27068144]
[1752239527503,0.21831128,117830.0,117820.0,0.63867786]
[1752239527698,0.21831128,117830.0,117820.0,1.12366532]
[1752239527899,0.21831128,117830.0,117820.0,1.29337452]
[1752239528099,0.21831128,117830.0,117820.0,1.26505666]
[1752239528299,0.21831128,117830.0,117820.0,1.24220358]
[1752239528800,0.21831128,117830.0,117820.0,0.7800692]
[1752239529002,0.21831128,117830.0,117820.0,1.07249438]
[1752239529202,0.24981128,117830.0,117820.0,1.24220358]
[1752239529901,0.24981128,117830.0,117820.0,1.07249438]
[1752239530107,0.24981128,117830.0,117820.0,1.24230358]
[1752239530307,0.24981128,117830.0,117820.0,0.61046]
[1752239530607,0.24981128,117830.0,117820.0,1.07259438]
[1752239530807,0.24981128,117830.0,117820.0,1.24230358]
[1752239531009,0.24981128,117830.0,117820.0,0.61046]
[1752239531208,0.24981128,117830.0,117820.0,1.07259438]
[1752239532007,0.24981128,117830.0,117820.0,1.24230358]
[1752239533008,0.24981128,117830.0,117820.0,0.61046]
[1752239533313,0.24981128,117830.0,117820.0,1.07259438]
[1752239533514,0.24981128,117830.0,117820.0,0.61046]
[1752239533711,0.24981128,117830.0,117820.0,1.07259438]
[1752239535522,0.24981128,117830.0,117820.0,0.60898]
[1752239536820,0.24981128,117830.0,117820.0,0.0021]
[1752239536821,0.71194566,117830.0,117820.0,0.0021]
[1752239537022,0.71194566,117830.0,117820.0,0.60862]
[1752239537225,0.24981128,117830.0,117820.0,0.60862]
[1752239537621,0.24981128,117830.0,117820.0,1.07075438]
[1752239540615,0.24981128,117830.0,117820.0,1.24046358]
[1752239541328,0.24981128,117830.0,117820.0,0.60862]
[1752239541530,0.24981128,117830.0,117820.0,1.07075438]
[1752239542127,0.24981128,117830.0,117820.0,1.24046348]
[1752239542318,0.24981128,117830.0,117820.0,1.07075438]
[1752239542628,0.24981128,117830.0,117820.0,1.24046358]
[1752239546430,0.24981128,117830.0,117820.0,0.60678]
[1752239546631,0.24981128,117830.0,117820.0,1.06891438]
[1752239547222,0.24981128,117830.0,117820.0,0.60678]
[1752239548127,0.25081128,117830.0,117820.0,0.60578]
[1752239548335,0.25081128,117830.0,117820.0,0.60478]
[1752239549333,0.25181128,117830.0,117820.0,0.60478]
[1752239550235,0.25181128,117830.0,117820.0,1.23662358]
[1752239550432,0.18951128,117830.0,117820.0,1.29982358]
[1752239552335,0.18851128,117830.0,117820.0,1.29982358]
[1752239552533,0.18951128,117830.0,117820.0,1.29982358]
[1752239552733,0.18951128,117830.0,117820.0,1.13011438]
[1752239552933,0.22011128,117830.0,117820.0,1.13011438]
[1752239553134,0.25231128,117830.0,117820.0,1.13011438]
[1752239553440,0.01881648,117830.0,117820.0,1.29982358]
[1752239553740,0.001,117830.0,117820.0,1.33850335]
[1752239554040,0.001,117830.0,117820.0,1.31565027]
[1752239554240,0.001,117830.0,117820.0,1.33850335]
[1752239555240,0.001,117830.0,117820.0,1.36882121]
[1752239555830,0.2121031,117840.0,117830.0,0.1696948]
[1752239556042,0.2121031,117840.0,117830.0,0.69572918]
[1752239556231,0.22991958,117840.0,117830.0,0.52603438]
[1752239556437,0.1696944,117830.0,117820.0,0.03977977]
[1752239556637,0.18751088,117830.0,117820.0,1.10655415]
[1752239556940,0.22001088,117830.0,117820.0,1.27626295]
[1752239557139,0.22001088,117830.0,117820.0,1.16805415]
[1752239557639,0.25231088,117830.0,117820.0,1.16805415]
[1752239557833,0.25231088,117830.0,117820.0,1.16705415]
[1752239558142,0.25231088,117830.0,117820.0,1.33676285]
[1752239558741,0.05031648,117830.0,117820.0,1.33676285]
[1752239558930,0.22001078,117830.0,117820.0,1.33676285]
[1752239559130,0.22201078,117830.0,117820.0,1.33676285]
[1752239561144,0.22101078,117830.0,117820.0,1.33676285]
[1752239562245,0.22101078,117830.0,117820.0,1.16705415]
[1752239562545,0.25151078,117830.0,117820.0,1.33676275]
[1752239563844,0.25151078,117830.0,117820.0,1.10555415]
[1752239564046,0.25151078,117830.0,117820.0,1.08270107]
[1752239564443,0.25151078,117830.0,117820.0,1.25240977]
[1752239564949,0.25151078,117830.0,117820.0,1.27526285]
[1752239564950,0.08181648,117830.0,117820.0,1.27526285]
[1752239565148,0.08181648,117830.0,117820.0,1.30836285]
[1752239565349,0.001,117830.0,117820.0,1.34006285]
[1752239566852,0.001,117830.0,117820.0,1.31720977]
[1752239568347,0.001,117830.0,117820.0,1.31820977]
[1752239568944,0.2851244,117840.0,117830.0,0.1696945]
[1752239569150,0.30294088,117840.0,117830.0,0.63182888]
[1752239569752,0.30294088,117840.0,117830.0,0.46213438]
[1752239570150,0.30394088,117840.0,117830.0,0.46213438]
[1752239572051,0.30394088,117840.0,117820.0,0.99435596]
[1752239572052,0.1696945,117830.0,117820.0,0.99435596]
[1752239572353,0.1696945,117830.0,117820.0,1.45649034]
[1752239572749,0.3285566,117840.0,117820.0,1.49891734]
[1752239572950,0.34637308,117840.0,117830.0,0.46213438]
[1752239573149,0.34537308,117840.0,117830.0,0.46213438]
[1752239573352,0.34537308,117840.0,117820.0,0.99434506]
[1752239573353,0.1696949,117830.0,117820.0,0.99434506]
[1752239573652,0.1696949,117830.0,117820.0,1.41405244]
[1752239573853,0.1696949,117830.0,117820.0,1.37162644]
[1752239574053,0.18751138,117830.0,117820.0,1.13712844]
[1752239574253,0.21991138,117830.0,117820.0,1.13712844]
[1752239574446,0.21991138,117830.0,117820.0,1.27630781]
[1752239574652,0.21991138,117830.0,117820.0,1.36833774]
[1752239574852,0.21991138,117830.0,117820.0,1.36733774]
[1752239575255,0.05021648,117830.0,117820.0,0.76269774]
[1752239575456,0.21991138,117830.0,117820.0,1.36713774]
[1752239575647,0.21991138,117830.0,117820.0,1.36813774]
[1752239575851,0.21991138,117830.0,117820.0,1.3452403]
[1752239576348,0.21991138,117830.0,117820.0,1.3681318]
[1752239577256,0.21991138,117830.0,117820.0,1.36845291]
[1752239577860,0.21991138,117830.0,117820.0,1.34556141]
[1752239578051,0.05021648,117830.0,117820.0,1.34556141]
[1752239578253,0.2140937,117850.0,117830.0,0.042423]
[1752239578451,0.002,117850.0,117840.0,1.7212403]
[1752239578654,0.002,117850.0,117840.0,1.79865215]
[1752239579959,0.003,117850.0,117840.0,1.79865215]
[1752239580160,0.003,117850.0,117840.0,1.82918208]
[1752239580553,0.005,117850.0,117840.0,1.82918208]
[1752239580756,0.005,117850.0,117840.0,1.8293849]
[1752239581055,0.1746661,117850.0,117840.0,1.33672059]
[1752239581258,0.1736661,117850.0,117840.0,1.27552059]
[1752239581558,0.22138258,117850.0,117840.0,1.27552059]
[1752239581759,0.22138258,117850.0,117840.0,0.64370571]
[1752239581955,0.22138258,117850.0,117840.0,1.10584009]
[1752239582562,0.22138258,117850.0,117840.0,0.64370571]
[1752239582858,0.72598156,117850.0,117820.0,0.65784097]
[1752239583052,0.64964576,117830.0,117820.0,0.62731104]
[1752239583257,0.64964576,117830.0,117820.0,0.60442]
[1752239583459,0.68084576,117830.0,117820.0,0.60442]
[1752239583967,0.21871138,117830.0,117820.0,0.0001]
[1752239584753,0.21871138,117830.0,117820.0,0.0021]
[1752239585566,0.21971138,117830.0,117820.0,0.0021]
[1752239586465,0.22171138,117830.0,117820.0,0.0001]
[1752239587566,0.25231138,117830.0,117820.0,0.0001]
[1752239587863,0.79410164,117830.0,117820.0,0.0001]
[1752239589456,0.25231138,117830.0,117820.0,0.0001]
[1752239590168,0.79410164,117830.0,117820.0,0.0001]
[1752239592066,2.00270164,117830.0,117820.0,0.0001]
[1752239594569,1.46091138,117830.0,117820.0,0.0001]
[1752239594771,2.00270164,117830.0,117820.0,0.0001]
[1752239598370,2.00270164,117830.0,117820.0,1e-07]
[1752239598371,2.17244564,117830.0,117820.0,1e-07]
[1752239604781,2.09313443,117830.0,117820.0,1e-07]
[1752239606772,1.63065538,117830.0,117820.0,1e-07]
[1752239606973,2.09313443,117830.0,117820.0,1e-07]
[1752239612570,2.15417437,117830.0,117820.0,1e-07]
[1752239613479,1.54969437,117830.0,117820.0,1e-07]
[1752239613778,1.37995037,117830.0,117820.0,1e-07]
[1752239619178,1.37991037,117830.0,117820.0,1e-07]
[1752239620490,0.77583037,117830.0,117820.0,1e-07]
[1752239620678,1.37987037,117830.0,117820.0,1e-07]
[1752239623382,1.37983037,117830.0,117820.0,1e-07]
[1752239627480,0.1697235,117810.0,117800.0,2e-08]
[1752239627684,1.25393903,117810.0,117800.0,2e-08]
[1752239627880,1.31853903,117810.0,117800.0,2e-08]
[1752239628082,1.32053903,117810.0,117800.0,2e-08]
[1752239628583,0.1697523,117790.0,117780.0,0.05464652]
[1752239628786,1.23615135,117790.0,117780.0,0.05464652]
[1752239628988,1.30075135,117790.0,117780.0,0.05464652]
[1752239629382,1.31280585,117790.0,117780.0,0.05464652]
[1752239629693,1.31280585,117790.0,117780.0,0.0318]
[1752239629990,1.30075135,117790.0,117780.0,0.0318]
[1752239630193,1.31856783,117790.0,117780.0,0.0318]
[1752239630587,1.31856783,117790.0,117780.0,0.0338]
[1752239631093,0.1697811,117770.0,117760.0,0.69923253]
[1752239631285,0.63226015,117770.0,117760.0,0.08667475]
[1752239631491,0.63226015,117770.0,117760.0,0.05614482]
[1752239631784,0.63226015,117770.0,117760.0,0.08834482]
[1752239632088,0.63226015,117770.0,117760.0,0.0654983]
[1752239632292,1.23610015,117770.0,117760.0,0.09239727]
[1752239632891,0.7736211,117770.0,117760.0,0.09239727]
[1752239633193,1.23610015,117770.0,117760.0,0.09239727]
[1752239633493,1.23610015,117770.0,117760.0,0.0694983]
[1752239633791,1.23610015,117770.0,117760.0,0.0674983]
[1752239633982,0.7736211,117770.0,117760.0,0.0684983]
[1752239634295,0.1697811,117770.0,117760.0,0.70077285]
[1752239634593,0.1697811,117770.0,117760.0,1.18615087]
[1752239634789,0.1697811,117770.0,117760.0,0.72367182]
[1752239634985,0.1697811,117770.0,117760.0,0.26119277]
[1752239635186,0.1697811,117770.0,117760.0,0.72367182]
[1752239635784,0.2122182,117780.0,117770.0,0.1697811]
[1752239635985,0.1697755,117780.0,117770.0,1.30220015]
[1752239636291,0.1697755,117780.0,117770.0,1.32509912]
[1752239637289,0.1697553,117790.0,117780.0,0.2546477]
[1752239637492,0.1697553,117790.0,117780.0,0.78112675]
[1752239638290,0.1697553,117790.0,117780.0,0.80402572]
[1752239638490,0.1697553,117790.0,117780.0,1.40782572]
[1752239638896,0.1697553,117790.0,117780.0,0.94534667]
[1752239639095,0.1697553,117790.0,117780.0,1.40782572]
[1752239641198,0.1697553,117790.0,117780.0,0.29910607]
[1752239641397,0.1697553,117790.0,117780.0,1.15313802]
[1752239641592,0.1697553,117790.0,117780.0,1.32290472]
[1752239641998,0.1697553,117790.0,117780.0,1.15313802]
[1752239642197,0.1707553,117790.0,117780.0,1.32290472]
[1752239642797,0.1707553,117790.0,117780.0,0.65985897]
[1752239643101,0.2012553,117790.0,117780.0,0.63692]
[1752239643292,0.1697667,117780.0,117770.0,0.02296262]
[1752239643492,0.69604575,117780.0,117770.0,0.02296262]
[1752239643794,0.71386223,117780.0,117770.0,6.365e-05]
[1752239645495,0.71486223,117780.0,117770.0,6.365e-05]
[1752239646290,0.71786223,117780.0,117770.0,6.365e-05]
[1752239652502,0.2375667,117780.0,117770.0,0.6323238]
[1752239653097,0.2375667,117780.0,117770.0,0.6632238]
[1752239653499,0.2375667,117780.0,117770.0,0.4625427]
[1752239653703,0.71786223,117780.0,117770.0,6.365e-05]
[1752239654301,0.25538318,117780.0,117770.0,6.365e-05]
[1752239655704,0.2375667,117780.0,117770.0,0.6323238]
[1752239655907,0.2375667,117780.0,117770.0,0.4625427]
[1752239657112,0.2375667,117780.0,117770.0,0.60354365]
[1752239659512,0.2375667,117780.0,117770.0,0.60364365]
[1752239659814,0.25538318,117780.0,117770.0,0.60364365]
[1752239660310,0.25538318,117780.0,117770.0,1.0661227]
[1752239662208,0.25538318,117780.0,117770.0,1.0662227]
[1752239662715,0.25538318,117780.0,117770.0,0.60374365]
[1752239663014,0.25538318,117780.0,117770.0,1.0662227]
[1752239664113,0.25538318,117780.0,117770.0,1.2360038]
[1752239664309,0.0678,117780.0,117770.0,1.2360038]
[1752239664509,0.004,117780.0,117770.0,1.2360038]
[1752239664814,0.004,117780.0,117770.0,1.2999038]
[1752239665617,0.004,117780.0,117770.0,0.86028565]
[1752239665816,0.002,117780.0,117770.0,1.3227647]
[1752239666626,0.002,117780.0,117770.0,1.7425807]
[1752239667526,0.002,117780.0,117770.0,2.2425807]
[1752239667720,0.002,117780.0,117770.0,2.27311063]
[1752239668121,0.002,117780.0,117770.0,2.00024973]
[1752239668622,0.1707667,117780.0,117770.0,0.93429068]
[1752239668919,0.1707667,117780.0,117770.0,1.99996973]
[1752239668920,0.001,117780.0,117770.0,1.99996973]
[1752239669121,0.001,117780.0,117770.0,1.53749068]
[1752239669321,0.001,117780.0,117770.0,1.49996973]
[1752239670628,0.1707667,117780.0,117770.0,1.33011373]
[1752239670830,0.1707667,117780.0,117770.0,0.72695373]
[1752239671030,0.1707667,117780.0,117770.0,1.35299194]
[1752239672021,0.001,117780.0,117770.0,1.35299194]
[1752239674135,0.2546225,117800.0,117790.0,0.1697523]
[1752239674334,0.2546225,117800.0,117790.0,1.23527135]
[1752239674335,0.33573898,117800.0,117790.0,1.23527135]
[1752239674729,0.25085438,117800.0,117790.0,1.23527135]
[1752239674929,0.08111648,117800.0,117790.0,1.23527135]
[1752239675128,0.22005438,117800.0,117790.0,1.26537135]
[1752239675630,0.22305438,117800.0,117790.0,1.29627135]
[1752239676938,0.22305438,117800.0,117790.0,1.26537135]
[1752239677634,0.25325438,117800.0,117790.0,0.8028923]
[1752239677835,0.25325438,117800.0,117790.0,1.06551905]
[1752239678740,0.25325438,117800.0,117790.0,1.06561905]
[1752239679933,0.25325438,117800.0,117790.0,0.60314]
[1752239680137,0.25325438,117800.0,117790.0,1.06561905]
[1752239681342,0.25325438,117800.0,117790.0,1.23537135]
[1752239681640,0.2354379,117800.0,117790.0,1.23537135]
[1752239681834,0.25325438,117800.0,117790.0,1.23537135]
[1752239682637,0.2354379,117800.0,117790.0,1.23537135]
[1752239682938,0.25325438,117800.0,117790.0,1.23537135]
[1752239685037,0.25325438,117800.0,117790.0,0.7728923]
[1752239685339,0.25325438,117800.0,117790.0,1.23537135]
[1752239688337,0.08351648,117800.0,117790.0,1.23537135]
[1752239688544,0.003,117800.0,117790.0,1.6978504]
[1752239688840,0.2121242,117830.0,117820.0,0.1697008]
[1752239689033,0.2121242,117830.0,117820.0,1.85342664]
[1752239689232,0.21961108,117830.0,117820.0,1.85342664]
[1752239689536,0.25151108,117830.0,117820.0,1.85342664]
[1752239689930,0.08181648,117830.0,117820.0,1.85342664]
[1752239690131,0.08181648,117830.0,117820.0,1.39094759]
[1752239690335,0.08181648,117830.0,117820.0,1.88412664]
[1752239690946,0.08181648,117830.0,117820.0,1.89556128]
[1752239691144,0.064,117830.0,117820.0,1.89556128]
[1752239691648,0.065,117830.0,117820.0,1.89556128]
[1752239692144,0.001,117830.0,117820.0,1.89556128]
[1752239692347,0.001,117830.0,117820.0,1.92866128]
[1752239692841,0.001,117830.0,117820.0,2.41401854]
[1752239693043,0.001,117830.0,117820.0,3.08376254]
[1752239693438,0.001,117830.0,117820.0,2.62893521]
[1752239693638,0.1696825,117840.0,117830.0,0.1696946]
[1752239693839,0.2028825,117840.0,117830.0,0.65499877]
[1752239694041,0.2345825,117840.0,117830.0,0.65499877]
[1752239694243,0.2345825,117840.0,117830.0,0.63217365]
[1752239694837,0.0649,117840.0,117830.0,0.7111583]
[1752239695447,0.0649,117840.0,117830.0,0.7427583]
[1752239698240,0.002,117850.0,117840.0,0.1696802]
[1752239698548,0.002,117850.0,117840.0,1.96468491]
[1752239698749,0.002,117850.0,117840.0,1.99648491]
[1752239699350,0.002,117850.0,117840.0,2.16619691]
[1752239699541,0.002,117850.0,117840.0,2.70766061]
[1752239700140,0.003,117850.0,117840.0,2.70766061]
[1752239700439,0.003,117850.0,117840.0,3.20766061]
[1752239700750,0.002,117850.0,117840.0,2.66619691]
[1752239700949,0.002,117850.0,117840.0,2.66819691]
[1752239702346,0.002,117850.0,117840.0,2.63739691]
[1752239702551,0.0335,117850.0,117840.0,2.03491691]
[1752239702754,0.0335,117850.0,117840.0,1.26308491]
[1752239702955,0.0335,117850.0,117840.0,1.86520491]
[1752239703152,0.0335,117850.0,117840.0,1.83210501]
[1752239703153,0.2031659,117850.0,117840.0,1.83210501]
[1752239703348,0.25408238,117850.0,117840.0,0.51884101]
[1752239703557,0.25408238,117850.0,117840.0,1.10512]
[1752239703952,0.25408238,117850.0,117840.0,0.60512]
[1752239704350,0.25408238,117850.0,117840.0,1.1465837]
[1752239704554,0.25408238,117850.0,117840.0,1.316264]
[1752239705855,0.25408238,117850.0,117840.0,0.5444637]
[1752239706050,0.25408238,117850.0,117840.0,1.1465037]
[1752239706256,0.25408238,117850.0,117840.0,1.3161842]
[1752239706456,0.25408238,117850.0,117840.0,1.1465037]
[1752239707357,0.25408238,117850.0,117840.0,0.60504]
[1752239708660,0.25408238,117850.0,117840.0,0.003]
[1752239708853,0.25408238,117850.0,117840.0,0.1726801]
[1752239709253,0.25408238,117850.0,117840.0,0.003]
[1752239709661,0.25408238,117850.0,117840.0,0.5444637]
[1752239709957,0.25408238,117850.0,117840.0,1.1464637]
[1752239711060,0.25408238,117850.0,117840.0,1.316144]
[1752239712160,0.25408238,117850.0,117840.0,1.1464637]
[1752239712360,0.25408238,117850.0,117840.0,0.5444637]
[1752239712562,0.08441648,117850.0,117840.0,1.33219482]
[1752239712758,0.25408238,117850.0,117840.0,1.33219482]
[1752239716761,0.25408238,117850.0,117840.0,1.33229482]
[1752239718367,0.25408238,117850.0,117840.0,1.35511994]
[1752239718963,0.25408238,117850.0,117840.0,1.27565634]
[1752239723866,0.08441648,117850.0,117840.0,1.27565634]
[1752239724068,0.25408228,117850.0,117840.0,1.27565634]
[1752239724864,0.25408228,117850.0,117840.0,1.30618627]
[1752239725065,0.25408228,117850.0,117840.0,1.27565634]
[1752239727172,0.08441648,117850.0,117840.0,1.27565634]
[1752239727374,0.25408228,117850.0,117840.0,1.27565634]
[1752239727972,0.25408228,117850.0,117840.0,1.27465634]
[1752239728266,0.25508228,117850.0,117840.0,1.27265634]
[1752239729569,0.25508228,117850.0,117840.0,1.10297604]
[1752239729766,0.25508228,117850.0,117840.0,0.02292512]
[1752239730070,0.71708238,117850.0,117840.0,0.02292512]
[1752239730372,0.71708238,117850.0,117840.0,0.0001]
[1752239730571,0.71708238,117850.0,117840.0,0.60186]
[1752239732070,1.13679438,117850.0,117840.0,0.0001]
[1752239732269,0.1696802,117840.0,117830.0,0.6018]
[1752239732469,0.6629803,117840.0,117830.0,0.6018]
[1752239732670,0.68079678,117840.0,117830.0,0.6018]
[1752239733070,0.1696946,117830.0,117820.0,1.28058855]
[1752239733270,0.22071108,117830.0,117820.0,1.85952343]
[1752239733470,0.68271118,117830.0,117820.0,0.08440343]
[1752239733671,0.68271118,117830.0,117820.0,0.68616343]
[1752239733975,0.68271118,117830.0,117820.0,0.25411243]
[1752239734273,0.68271118,117830.0,117820.0,0.68616343]
[1752239734478,0.22071108,117830.0,117820.0,0.68816343]
[1752239734871,0.22071108,117830.0,117820.0,0.69016343]
[1752239735471,0.25181108,117830.0,117820.0,0.08840343]
[1752239735667,0.25181108,117830.0,117820.0,0.69020343]
[1752239738076,0.25181108,117830.0,117820.0,0.85991243]
[1752239738281,0.25181108,117830.0,117820.0,0.69030343]
[1752239740569,0.25181108,117830.0,117820.0,1.32201253]
[1752239740975,0.25181108,117830.0,117820.0,1.35261253]
[1752239742678,0.2007946,117830.0,117820.0,1.35261253]
[1752239742875,0.2007946,117830.0,117820.0,1.38301253]
[1752239744885,0.2007946,117830.0,117820.0,1.38001253]
[1752239745084,0.2007946,117830.0,117820.0,0.74930343]
[1752239745284,0.2007946,117830.0,117820.0,0.71890343]
[1752239745478,0.2007946,117830.0,117820.0,1.18090353]
[1752239745672,0.21861108,117830.0,117820.0,1.18090353]
[1752239745980,0.24981108,117830.0,117820.0,1.18090353]
[1752239747481,0.24981108,117830.0,117820.0,1.15030353]
[1752239747880,0.24981108,117830.0,117820.0,1.15022353]
[1752239748182,0.24981108,117830.0,117820.0,1.31993263]
[1752239750582,0.24981108,117830.0,117820.0,1.15022353]
[1752239750779,0.24981108,117830.0,117820.0,1.31993263]
[1752239750975,0.24981108,117830.0,117820.0,0.85793253]
[1752239751172,0.24981108,117830.0,117820.0,1.31993263]
[1752239754791,0.24981108,117830.0,117820.0,1.15022353]